[Event "IRI-ch Men Final 2015"]
[Site "Tehran"]
[Date "2016.01.25"]
[Round "8"]
[White "Khamisi, S Jafar"]
[Black "Lorparizangeneh, Shahin"]
[Result "0-1"]
[ECO "C60"]
[WhiteElo "2279"]
[BlackElo "2442"]
[PlyCount "61"]
[EventDate "2016.??.??"]
[EventCountry "IRI"]
[TimeControl "40/5400+30:1800+30"]

1. e4 {[%emt 0:00:00]} e5 {[%emt 0:00:09]} 2. Nf3 {[%emt 0:00:00]} Nc6 {
[%emt 0:00:05]} 3. Bb5 {[%emt 0:00:18]} Nge7 {[%emt 0:00:09]} 4. O-O {[%emt 0:
07:25]} g6 {[%emt 0:01:00]} 5. c3 {[%emt 0:04:55]} a6 {[%emt 0:00:54]} 6. Ba4 {
[%emt 0:00:23]} Bg7 {[%emt 0:00:08]} 7. d4 {[%emt 0:00:24]} exd4 {[%emt 0:00:
07]} 8. cxd4 {[%emt 0:00:06]} O-O {[%emt 0:00:15]} 9. Nc3 {[%emt 0:03:03]} b5 {
[%emt 0:00:27]} 10. Bc2 {[%emt 0:01:48]} d6 {[%emt 0:04:08]} 11. h3 {[%emt 0:
00:56]} Na5 {[%emt 0:02:41]} 12. Bf4 {[%emt 0:04:15]} Bb7 {[%emt 0:12:22]} 13.
Ne2 {[%emt 0:08:29]} Qd7 {[%emt 0:08:34]} 14. Ng3 {[%emt 0:06:32]} Nc4 {
[%emt 0:11:17]} 15. b3 {[%emt 0:09:35]} Na3 {[%emt 0:01:00]} 16. Bd3 {[%emt 0:
00:07]} Nc6 {[%emt 0:06:49]} 17. Be2 {[%emt 0:13:45]} b4 {[%emt 0:04:17]} 18.
Rc1 {[%emt 0:05:47]} Nb5 {[%emt 0:06:09]} 19. Bxb5 {[%emt 0:01:09]} axb5 {
[%emt 0:00:01]} 20. Qd2 {[%emt 0:00:26]} f5 {[%emt 0:04:33]} 21. exf5 {[%emt 0:
01:49]} Ne7 {[%emt 0:00:16]} 22. Nh4 {[%emt 0:05:55]} Nd5 {[%emt 0:09:20]} 23.
Bg5 {[%emt 0:04:14]} gxf5 {[%emt 0:03:16]} 24. Rfe1 {[%emt 0:02:32]} f4 {
[%emt 0:06:06]} 25. Nh5 {[%emt 0:05:09]} Qf7 {[%emt 0:00:27]} 26. Nxf4 {
[%emt 0:05:27]} Nxf4 {[%emt 0:00:45]} 27. Re7 {[%emt 0:00:40]} Nxh3+ {[%emt 0:
00:24]} 28. gxh3 {[%emt 0:06:11]} Qd5 {[%emt 0:00:07]} 29. Kh2 {[%emt 0:00:35]}
Bxd4 {[%emt 0:09:57]} 30. Be3 {[%emt 0:02:29]} Be5+ {[%emt 0:04:15]} 31. Rxe5
0-1

[Event "IRI-ch Men Final 2015"]
[Site "Tehran"]
[Date "2016.01.25"]
[Round "8"]
[White "Mosadeghpour, Masoud"]
[Black "Maghsoodloo, Parham"]
[Result "0-1"]
[ECO "B08"]
[WhiteElo "2475"]
[BlackElo "2450"]
[PlyCount "92"]
[EventDate "2016.??.??"]
[EventCountry "IRI"]
[TimeControl "40/5400+30:1800+30"]

1. e4 {[%emt 0:00:00]} d6 {[%emt 0:00:13]} 2. d4 {[%emt 0:00:00]} Nf6 {[%emt 0:
00:09]} 3. Nc3 {[%emt 0:00:00]} g6 {[%emt 0:00:06]} 4. Nf3 {[%emt 0:00:05]} Bg7
{[%emt 0:00:33]} 5. Be2 {[%emt 0:00:09]} O-O {[%emt 0:00:46]} 6. O-O {[%emt 0:
00:08]} a6 {[%emt 0:00:24]} 7. Bf4 {[%emt 0:03:44]} Nc6 {[%emt 0:00:51]} 8. h3
{[%emt 0:02:58]} b5 {[%emt 0:05:21]} 9. a3 {[%emt 0:04:48]} Bb7 {[%emt 0:02:41]
} 10. d5 {[%emt 0:08:53]} Nb8 {[%emt 0:00:55]} 11. Qd2 {[%emt 0:00:05]} c6 {
[%emt 0:02:41]} 12. dxc6 {[%emt 0:04:05]} Nxc6 {[%emt 0:00:16]} 13. Bh6 {
[%emt 0:04:46]} Rc8 {[%emt 0:04:21]} 14. Rad1 {[%emt 0:05:51]} Ne5 {[%emt 0:05:
20]} 15. Bxg7 {[%emt 0:17:45]} Kxg7 {[%emt 0:01:56]} 16. Qe3 {[%emt 0:00:11]}
Qa5 {[%emt 0:06:27]} 17. Nd2 {[%emt 0:01:21]} Ned7 {[%emt 0:01:44]} 18. Nb3 {
[%emt 0:12:29]} Qb6 {[%emt 0:00:41]} 19. Qxb6 {[%emt 0:02:25]} Nxb6 {[%emt 0:
00:01]} 20. Rd4 {[%emt 0:06:59]} Rc7 {[%emt 0:07:11]} 21. Na5 {[%emt 0:02:09]}
Ba8 {[%emt 0:01:03]} 22. a4 {[%emt 0:06:16]} bxa4 {[%emt 0:06:43]} 23. Rb4 {
[%emt 0:00:36]} Nfd7 {[%emt 0:00:10]} 24. Ra1 {[%emt 0:03:36]} Rc5 {[%emt 0:01:
27]} 25. Nc4 {[%emt 0:00:09]} Nxc4 {[%emt 0:01:14]} 26. Rxc4 {[%emt 0:00:57]}
Rb8 {[%emt 0:00:40]} 27. Rxc5 {[%emt 0:09:12]} Nxc5 {[%emt 0:01:17]} 28. Nxa4 {
[%emt 0:00:02]} Bxe4 {[%emt 0:01:03]} 29. Nxc5 {[%emt 0:00:51]} dxc5 {[%emt 0:
00:02]} 30. Ra5 {[%emt 0:02:08]} Rxb2 {[%emt 0:00:28]} 31. Rxc5 {[%emt 0:00:10]
} Ra2 {[%emt 0:02:21]} 32. Bd3 {[%emt 0:02:27]} Bxd3 {[%emt 0:00:56]} 33. cxd3
{[%emt 0:00:01]} a5 {[%emt 0:00:00]} 34. d4 {[%emt 0:00:57]} a4 {[%emt 0:00:11]
} 35. Rc7 {[%emt 0:00:41]} a3 {[%emt 0:01:07]} 36. Ra7 {[%emt 0:00:34]} Kf6 {
[%emt 0:00:16]} 37. g3 {[%emt 0:00:16]} Ke6 {[%emt 0:00:39]} 38. Kg2 {[%emt 0:
00:26]} Kd5 {[%emt 0:01:33]} 39. Rxe7 {[%emt 0:00:31]} Rc2 {[%emt 0:00:23]} 40.
Rd7+ {[%emt 0:00:47]} Ke4 {[%emt 0:00:06]} 41. Rxf7 {[%emt 0:02:52]} a2 {
[%emt 0:00:00]} 42. Ra7 {[%emt 0:00:12]} Kxd4 {[%emt 0:00:00]} 43. Kf3 {
[%emt 0:12:21]} Kc3 {[%emt 0:00:00]} 44. Kg4 {[%emt 0:00:09]} Rxf2 {[%emt 0:00:
28]} 45. Kg5 {[%emt 0:00:26]} Kb2 {[%emt 0:00:36]} 46. Kh6 {[%emt 0:01:05]} Rf3
{[%emt 0:00:01]} 0-1

[Event "IRI-ch Men Final 2015"]
[Site "Tehran"]
[Date "2016.01.25"]
[Round "8"]
[White "Mousavi, Seyed Khalil"]
[Black "Noroozi, Omid"]
[Result "1/2-1/2"]
[ECO "A06"]
[WhiteElo "2425"]
[BlackElo "2399"]
[PlyCount "154"]
[EventDate "2016.??.??"]
[EventCountry "IRI"]
[TimeControl "40/5400+30:1800+30"]

1. Nf3 {[%emt 0:00:00]} d5 {[%emt 0:03:17]} 2. g3 {[%emt 0:00:00]} c6 {[%emt 0:
00:24]} 3. Bg2 {[%emt 0:00:33]} Bg4 {[%emt 0:00:08]} 4. c4 {[%emt 0:03:43]} e6
{[%emt 0:00:34]} 5. Ne5 {[%emt 0:02:07]} Bf5 {[%emt 0:03:52]} 6. cxd5 {[%emt 0:
03:20]} exd5 {[%emt 0:01:23]} 7. b3 {[%emt 0:01:51]} Bd6 {[%emt 0:04:00]} 8.
Bb2 {[%emt 0:01:01]} Nf6 {[%emt 0:14:01]} 9. O-O {[%emt 0:03:20]} O-O {[%emt 0:
00:08]} 10. d3 {[%emt 0:00:59]} Re8 {[%emt 0:01:26]} 11. Nf3 {[%emt 0:01:15]}
Nbd7 {[%emt 0:00:13]} 12. Nbd2 {[%emt 0:00:55]} a5 {[%emt 0:02:56]} 13. Re1 {
[%emt 0:02:50]} Bc5 {[%emt 0:06:05]} 14. Nh4 {[%emt 0:13:26]} Bg4 {[%emt 0:18:
29]} 15. h3 {[%emt 0:06:27]} Bh5 {[%emt 0:05:29]} 16. Ndf3 {[%emt 0:02:26]} Qb6
{[%emt 0:05:28]} 17. e3 {[%emt 0:02:17]} Bg6 {[%emt 0:04:04]} 18. Nd4 {[%emt 0:
03:06]} a4 {[%emt 0:10:25]} 19. Rb1 {[%emt 0:01:01]} axb3 {[%emt 0:02:04]} 20.
axb3 {[%emt 0:00:28]} Ra2 {[%emt 0:02:08]} 21. Ndf5 {[%emt 0:03:10]} Ba3 {
[%emt 0:04:40]} 22. Ba1 {[%emt 0:00:35]} Ra8 {[%emt 0:01:54]} 23. Re2 {[%emt 0:
16:35]} Bc5 {[%emt 0:00:26]} 24. b4 {[%emt 0:02:44]} Bf8 {[%emt 0:01:22]} 25.
Bd4 {[%emt 0:00:13]} Qb5 {[%emt 0:01:09]} 26. Rxa2 {[%emt 0:02:55]} Rxa2 {
[%emt 0:00:02]} 27. e4 {[%emt 0:02:00]} Ra3 {[%emt 0:02:55]} 28. Bf1 {[%emt 0:
01:28]} Qa4 {[%emt 0:01:53]} 29. Qe1 {[%emt 0:01:01]} dxe4 {[%emt 0:01:54]} 30.
dxe4 {[%emt 0:00:10]} Qc2 {[%emt 0:00:54]} 31. Bg2 {[%emt 0:01:48]} Rb3 {
[%emt 0:00:06]} 32. Ra1 {[%emt 0:03:17]} Rxb4 {[%emt 0:00:24]} 33. Kh2 {
[%emt 0:00:40]} Ra4 {[%emt 0:00:39]} 34. Rxa4 {[%emt 0:00:41]} Qxa4 {[%emt 0:
01:32]} 35. e5 {[%emt 0:00:02]} Bb4 {[%emt 0:00:13]} 36. Qe2 {[%emt 0:00:56]}
Ne8 {[%emt 0:00:39]} 37. e6 {[%emt 0:00:20]} Ndf6 {[%emt 0:00:39]} 38. Qc4 {
[%emt 0:07:08]} Qb5 {[%emt 0:00:33]} 39. Qb3 {[%emt 0:00:06]} c5 {[%emt 0:00:
28]} 40. Bc3 {[%emt 0:06:05]} fxe6 {[%emt 0:00:31]} 41. Nxg6 {[%emt 0:12:10]}
hxg6 {[%emt 0:00:38]} 42. Qxe6+ {[%emt 0:00:53]} Kh7 {[%emt 0:05:30]} 43. Bxf6
{[%emt 0:01:04]} Nxf6 {[%emt 0:00:41]} 44. Ne3 {[%emt 0:06:48]} Qe2 {[%emt 0:
02:19]} 45. Qc4 {[%emt 0:06:43]} Qxf2 {[%emt 0:11:38]} 46. Nd5 {[%emt 0:00:54]}
Nh5 {[%emt 0:02:59]} 47. g4 {[%emt 0:00:06]} Qg3+ {[%emt 0:04:07]} 48. Kg1 {
[%emt 0:00:31]} Qe1+ {[%emt 0:00:35]} 49. Qf1 {[%emt 0:03:21]} Ng3 {[%emt 0:00:
25]} 50. Qxe1 {[%emt 0:00:08]} Bxe1 {[%emt 0:00:02]} 51. Nb6 {[%emt 0:01:16]}
c4 {[%emt 0:04:20]} 52. Nxc4 {[%emt 0:01:04]} b5 {[%emt 0:00:01]} 53. Ne3 {
[%emt 0:04:28]} b4 {[%emt 0:00:24]} 54. Bd5 {[%emt 0:00:22]} Kh6 {[%emt 0:01:
53]} 55. Kg2 {[%emt 0:02:38]} Kg5 {[%emt 0:00:56]} 56. Kf3 {[%emt 0:00:28]} Bd2
{[%emt 0:01:33]} 57. Ng2 {[%emt 0:00:48]} Nh1 {[%emt 0:00:29]} 58. Bc4 {
[%emt 0:01:09]} Kf6 {[%emt 0:00:20]} 59. Ke2 {[%emt 0:01:02]} Bc3 {[%emt 0:00:
18]} 60. h4 {[%emt 0:00:12]} Ke5 {[%emt 0:00:05]} 61. Bd3 {[%emt 0:00:30]} Ng3+
{[%emt 0:01:13]} 62. Kf3 {[%emt 0:00:16]} Kd4 {[%emt 0:00:10]} 63. Bxg6 {
[%emt 0:00:39]} Nf1 {[%emt 0:00:06]} 64. Nf4 {[%emt 0:00:48]} Nd2+ {[%emt 0:00:
28]} 65. Ke2 {[%emt 0:00:04]} b3 {[%emt 0:00:41]} 66. g5 {[%emt 0:00:51]} b2 {
[%emt 0:01:04]} 67. Bc2 {[%emt 0:00:43]} b1=Q {[%emt 0:00:30]} 68. Bxb1 {
[%emt 0:00:24]} Nxb1 {[%emt 0:00:01]} 69. Kf3 {[%emt 0:00:32]} Ke5 {[%emt 0:00:
59]} 70. Kg4 {[%emt 0:00:30]} Nd2 {[%emt 0:00:25]} 71. h5 {[%emt 0:00:26]} Nf1
{[%emt 0:00:40]} 72. Ng6+ {[%emt 0:00:22]} Ke4 {[%emt 0:00:20]} 73. h6 {
[%emt 0:00:10]} Ne3+ {[%emt 0:00:03]} 74. Kh5 {[%emt 0:00:28]} gxh6 {[%emt 0:
00:21]} 75. gxh6 {[%emt 0:00:11]} Nd5 {[%emt 0:00:42]} 76. h7 {[%emt 0:00:14]}
Nf4+ {[%emt 0:00:04]} 77. Nxf4 {[%emt 0:00:05]} Kxf4 {[%emt 0:00:03]} 1/2-1/2

[Event "IRI-ch Men Final 2015"]
[Site "Tehran"]
[Date "2016.01.26"]
[Round "9"]
[White "Darini, Pouria"]
[Black "Mousavi, Seyed Khalil"]
[Result "1-0"]
[ECO "C11"]
[WhiteElo "2474"]
[BlackElo "2425"]
[PlyCount "67"]
[EventDate "2016.??.??"]
[EventCountry "IRI"]
[TimeControl "40/5400+30:1800+30"]

1. e4 {[%emt 0:01:11]} e6 {[%emt 0:00:19]} 2. d4 {[%emt 0:00:05]} d5 {[%emt 0:
00:14]} 3. Nc3 {[%emt 0:00:03]} Nf6 {[%emt 0:00:41]} 4. e5 {[%emt 0:00:19]}
Nfd7 {[%emt 0:00:22]} 5. f4 {[%emt 0:00:02]} c5 {[%emt 0:00:28]} 6. Nf3 {
[%emt 0:00:06]} Nc6 {[%emt 0:01:10]} 7. Be3 {[%emt 0:00:07]} cxd4 {[%emt 0:02:
29]} 8. Nxd4 {[%emt 0:00:07]} Bc5 {[%emt 0:00:04]} 9. Qd2 {[%emt 0:01:46]} a6 {
[%emt 0:01:17]} 10. O-O-O {[%emt 0:00:41]} O-O {[%emt 0:05:21]} 11. Kb1 {
[%emt 0:05:45]} Nxd4 {[%emt 0:07:06]} 12. Bxd4 {[%emt 0:00:02]} b5 {[%emt 0:03:
28]} 13. h4 {[%emt 0:11:22]} Bb7 {[%emt 0:02:16]} 14. Ne2 {[%emt 0:14:04]} Qe7
{[%emt 0:06:07]} 15. Qe3 {[%emt 0:05:47]} Rac8 {[%emt 0:02:03]} 16. g4 {
[%emt 0:08:05]} f6 {[%emt 0:16:00]} 17. Bh3 {[%emt 0:03:19]} Bxd4 {[%emt 0:15:
22]} 18. Nxd4 {[%emt 0:00:29]} fxe5 {[%emt 0:01:33]} 19. fxe5 {[%emt 0:00:18]}
Nc5 {[%emt 0:01:35]} 20. g5 {[%emt 0:00:26]} Kh8 {[%emt 0:01:15]} 21. h5 {
[%emt 0:17:22]} Bc6 {[%emt 0:05:31]} 22. h6 {[%emt 0:05:26]} g6 {[%emt 0:04:23]
} 23. Rhf1 {[%emt 0:00:23]} Bd7 {[%emt 0:02:52]} 24. Bg2 {[%emt 0:04:53]} Nb7 {
[%emt 0:06:27]} 25. Rf6 {[%emt 0:07:30]} Na5 {[%emt 0:01:14]} 26. b3 {[%emt 0:
03:09]} Qa3 {[%emt 0:04:40]} 27. Qc1 {[%emt 0:05:28]} Qxc1+ {[%emt 0:02:55]}
28. Kxc1 {[%emt 0:00:01]} Rxf6 {[%emt 0:01:08]} 29. exf6 {[%emt 0:00:41]} e5 {
[%emt 0:00:25]} 30. Bxd5 {[%emt 0:04:05]} exd4 {[%emt 0:00:33]} 31. Rxd4 {
[%emt 0:00:01]} Bc6 {[%emt 0:02:52]} 32. f7 {[%emt 0:01:44]} Rf8 {[%emt 0:03:
17]} 33. Bxc6 {[%emt 0:00:27]} Nxc6 {[%emt 0:00:30]} 34. Re4 {[%emt 0:00:06]}
1-0

[Event "IRI-ch Men Final 2015"]
[Site "Tehran"]
[Date "2016.01.26"]
[Round "9"]
[White "Ghaem Maghami, Ehsan"]
[Black "Firouzja, Alireza"]
[Result "0-1"]
[ECO "A50"]
[WhiteElo "2594"]
[BlackElo "2455"]
[PlyCount "84"]
[EventDate "2016.??.??"]
[EventCountry "IRI"]
[TimeControl "40/5400+30:1800+30"]

1. c4 {[%emt 0:00:00]} g6 {[%emt 0:00:00]} 2. d4 {[%emt 0:04:28]} Nf6 {[%emt 0:
00:33]} 3. Bg5 {[%emt 0:00:26]} Bg7 {[%emt 0:08:59]} 4. Nc3 {[%emt 0:00:16]}
O-O {[%emt 0:03:46]} 5. e4 {[%emt 0:00:32]} d6 {[%emt 0:00:45]} 6. Qd2 {
[%emt 0:05:55]} c5 {[%emt 0:06:10]} 7. d5 {[%emt 0:00:21]} e6 {[%emt 0:03:14]}
8. f3 {[%emt 0:09:02]} exd5 {[%emt 0:06:49]} 9. cxd5 {[%emt 0:09:13]} a6 {
[%emt 0:02:09]} 10. Nge2 {[%emt 0:01:12]} b5 {[%emt 0:02:12]} 11. Ng3 {[%emt 0:
00:36]} Re8 {[%emt 0:02:04]} 12. Be2 {[%emt 0:01:00]} Nbd7 {[%emt 0:01:48]} 13.
O-O {[%emt 0:00:35]} Rb8 {[%emt 0:12:25]} (13... Qc7 14. Rac1 b4 15. Nd1 a5 16.
Bh6 Bh8 17. Ne3 Nb6 18. Kh1 Ba6 19. Bxa6 Rxa6 20. f4 Raa8 21. e5 dxe5 22. fxe5
Qxe5 23. Rxc5 Nfd7 24. Rc2 Rac8 25. Rxc8 Rxc8 26. d6 Qe6 27. b3 Be5 28. Bf4
Bxf4 29. Rxf4 f5 30. Rf1 Re8 31. Nexf5 gxf5 32. Nxf5 Kh8 33. Ne7 Ne5 34. h3
Nbd7 35. Qd4 Kg7 36. Nf5+ Kg8 37. Ne7+ Kg7 38. Nf5+ Kg8 39. Ne7+ {1/2-1/2 (39)
Dreev,A (2711)-Khairullin,I (2642) St Petersburg 2011}) 14. Kh1 {[%emt 0:13:43]
} (14. b3 Qa5 15. Rac1 c4 16. Nb1 Qxd2 17. Nxd2 c3 18. Rxc3 Nxd5 19. Rxc8 Rbxc8
20. exd5 Rc2 21. Nde4 Rxa2 22. Nxd6 Rexe2 23. Nxe2 Rxe2 24. Rd1 f5 25. Kf1 Ra2
26. Rc1 Ra1 27. Rxa1 Bxa1 28. Nb7 Bd4 29. Ke2 Nc5 30. Nxc5 Bxc5 31. Bd2 Kf7 32.
b4 Bd6 33. g3 Ke7 34. Kd3 Kd7 35. Kd4 h5 36. Be1 h4 37. Ke3 h3 38. f4 Bf8 39.
Kf3 Kd6 40. g4 Kxd5 41. gxf5 gxf5 42. Kg3 Kc4 {0-1 (42) Atalik,S (2535)-Gufeld,
E (2445) Beijing 1996}) 14... Qe7 {[%emt 0:06:41]} 15. a4 {[%emt 0:14:23]} b4 {
[%emt 0:13:48]} 16. Nd1 {[%emt 0:01:58]} Qf8 $1 {[%emt 0:02:00] Not only
preventing White from exchanging off the monster bishop on g7, but prepares an
h6-h5 of his own to force White's pieces back.} 17. Nf2 {[%emt 0:05:19]} h6 {
[%emt 0:01:48]} 18. Be3 {[%emt 0:00:47]} h5 {[%emt 0:00:21]} 19. Rfe1 {[%emt 0:
01:30]} a5 $6 {[%emt 0:11:21] A strange decision. On the one hand, Black wants
to secure the b6 square for his knight where it will have a good range of
action, but on the other, it gives White's (very) bad bishop a lovely square
on b5.} 20. Bb5 {[%emt 0:04:11]} Bb7 {[%emt 0:00:51]} 21. Nf1 {[%emt 0:01:20]}
Rec8 {[%emt 0:02:50]} 22. Rac1 {[%emt 0:08:48]} Nb6 {[%emt 0:01:09]} 23. Qc2 {
[%emt 0:06:40]} Nfd7 {[%emt 0:01:15] Black's plan is clear and White seems to
have given up on his central expansion, usually prepared via f4-e5. Instead
Black has the initiative now and is threatening ...c4 after which he will be
doing very well.} 24. Nd2 $2 {[%emt 0:00:54] Quite simply a mistake. Yes, it
aims at the c4 square, but not it does not prevent ...c4 from being played.} (
24. b3 $1 {was obligatory, after which it would be a complicated struggle
still, with a small edge for White thanks to his space advantage.}) 24... c4 $1
{[%emt 0:01:33] Now, not only has Black equalized, he is probably a bit better.
} 25. Qb1 {[%emt 0:01:43]} c3 {[%emt 0:01:44]} 26. bxc3 {[%emt 0:01:10]} Bxc3 {
[%emt 0:00:44]} 27. Nd1 {[%emt 0:00:26]} Bxd2 {[%emt 0:01:59]} 28. Bxd2 {
[%emt 0:00:16]} Rxc1 {[%emt 0:00:33]} 29. Bxc1 {[%emt 0:01:23] In spite of
having played his dream breakthrough with ...c4, White is still fine, and
mostly because of that bishop on b5. It shows how a small mistake can still
have long reaching consequences.} Nc5 $1 {[%emt 0:00:07] The purpose of ths
move is not simply to plant the knight on a nice square, but to prepare Ba6
and trade off that bishop on b5. If it goes down, the a4 pawn may also fall.}
30. Nb2 $2 {[%emt 0:02:03] White is clearly rattled at the way he lost control
of the game. This is not how the top-seed 2600 player envisioned it at the
start of the day.} (30. Be3 {was the only move to prevent an immediate ...Ba6.}
) 30... Ba6 {[%emt 0:01:06]} 31. Bxa6 {[%emt 0:00:11]} Nxa6 {[%emt 0:00:04]}
32. Be3 {[%emt 0:00:22]} Nc5 {[%emt 0:00:43] Simply put: White is in a world
of pain.} 33. Qd1 {[%emt 0:01:47]} Qe8 {[%emt 0:02:48]} 34. Bxc5 $2 {[%emt 0:
02:33] This only forestalls the loss of the pawn for a couple of moves, and
instead brings in new issues, such as two monster connected passed pawns.
White is panicking.} dxc5 {[%emt 0:00:04]} 35. Qb3 {[%emt 0:00:49]} Qe5 {
[%emt 0:01:25]} 36. Rd1 {[%emt 0:01:33]} Qc3 $1 {[%emt 0:01:17] Black has now
calculated the win to the end.} 37. Qxc3 {[%emt 0:00:25]} bxc3 {[%emt 0:00:04]}
38. Nd3 {[%emt 0:00:17]} c2 {[%emt 0:01:10]} 39. Rc1 {[%emt 0:00:07] [#] Black
had foreseen this next shot already when he played 36...Qc3.} Nxd5 $3 {[%emt 0:
00:27]} 40. Rxc2 {[%emt 0:00:27]} ({After} 40. exd5 Rb1 41. Rg1 {Forced since
the threat was ...c4, evicting the knight from the rook's protection.} Rd1 $1
42. Nc1 h4 $1 {and White will soon be in complete zugzwang.}) 40... Nb4 {
[%emt 0:00:14]} 41. Nxb4 {[%emt 0:02:15]} (41. Rc3 Nxd3 {and White cannot take
due to the back rank mate.}) 41... axb4 {[%emt 0:00:00]} 42. Rxc5 {[%emt 0:03:
27]} b3 {[%emt 0:00:03] White resigned.} (42... b3 $1 {the game would conclude
with the very elegant} 43. Rc1 b2 44. Rb1 Rc8 $3 {and there is no defense
against ...Rc1}) 0-1

[Event "IRI-ch Men Final 2015"]
[Site "Tehran"]
[Date "2016.01.26"]
[Round "9"]
[White "Gholami, Aryan"]
[Black "Khamisi, S Jafar"]
[Result "1/2-1/2"]
[ECO "A06"]
[WhiteElo "2398"]
[BlackElo "2279"]
[PlyCount "59"]
[EventDate "2016.??.??"]
[EventCountry "IRI"]
[TimeControl "40/5400+30:1800+30"]

1. Nf3 {[%emt 0:00:12]} d5 {[%emt 0:00:00]} 2. g3 {[%emt 0:03:39]} Nf6 {
[%emt 0:00:01]} 3. Bg2 {[%emt 0:00:07]} c6 {[%emt 0:01:15]} 4. O-O {[%emt 0:01:
31]} Bf5 {[%emt 0:00:44]} 5. d3 {[%emt 0:00:49]} e6 {[%emt 0:01:31]} 6. Nbd2 {
[%emt 0:01:28]} h6 {[%emt 0:00:54]} 7. b3 {[%emt 0:01:23]} Be7 {[%emt 0:00:26]}
8. Bb2 {[%emt 0:00:26]} O-O {[%emt 0:00:14]} 9. c4 {[%emt 0:04:59]} Nbd7 {
[%emt 0:00:58]} 10. Qc2 {[%emt 0:03:00]} a5 {[%emt 0:01:09]} 11. a3 {[%emt 0:
00:39]} Re8 {[%emt 0:01:44]} 12. Rac1 {[%emt 0:02:18]} Qb6 {[%emt 0:03:25]} 13.
Qb1 {[%emt 0:01:38]} Bf8 {[%emt 0:00:53]} 14. Qa1 {[%emt 0:01:22]} Bh7 {
[%emt 0:07:04]} 15. Ne5 {[%emt 0:06:51]} Nxe5 {[%emt 0:17:25]} 16. Bxe5 {
[%emt 0:00:15]} Be7 {[%emt 0:00:32]} 17. Qb2 {[%emt 0:03:54]} c5 {[%emt 0:06:
46]} 18. cxd5 {[%emt 0:08:39]} exd5 {[%emt 0:00:07]} 19. e4 {[%emt 0:25:19]}
dxe4 {[%emt 0:12:35]} 20. dxe4 {[%emt 0:00:25]} a4 {[%emt 0:03:26]} 21. Bc3 {
[%emt 0:13:35]} axb3 {[%emt 0:11:38]} 22. e5 {[%emt 0:00:06]} Nd7 {[%emt 0:00:
11]} 23. e6 {[%emt 0:03:11]} Nf6 {[%emt 0:09:28]} 24. exf7+ {[%emt 0:00:21]}
Kxf7 {[%emt 0:00:04]} 25. Nc4 {[%emt 0:00:39]} Qb5 {[%emt 0:03:01]} 26. Bxf6 {
[%emt 0:04:36]} Bxf6 {[%emt 0:03:54]} 27. Nd6+ {[%emt 0:00:10]} Kf8 {[%emt 0:
00:13]} 28. Qxf6+ {[%emt 0:06:58]} gxf6 {[%emt 0:00:05]} 29. Nxb5 {[%emt 0:00:
02]} b2 {[%emt 0:00:13]} 30. Rxc5 {[%emt 0:03:25]} 1/2-1/2

[Event "IRI-ch Men Final 2015"]
[Site "Tehran"]
[Date "2016.01.26"]
[Round "9"]
[White "Lorparizangeneh, Shahin"]
[Black "Mosadeghpour, Masoud"]
[Result "1-0"]
[ECO "D34"]
[WhiteElo "2442"]
[BlackElo "2475"]
[PlyCount "100"]
[EventDate "2016.??.??"]
[EventCountry "IRI"]
[TimeControl "40/5400+30:1800+30"]

1. Nf3 {[%emt 0:00:06]} d5 {[%emt 0:00:00]} 2. d4 {[%emt 0:02:20]} e6 {[%emt 0:
00:49]} 3. c4 {[%emt 0:00:20]} c5 {[%emt 0:00:52]} 4. cxd5 {[%emt 0:01:07]}
exd5 {[%emt 0:00:12]} 5. g3 {[%emt 0:00:17]} Nc6 {[%emt 0:00:59]} 6. Bg2 {
[%emt 0:00:06]} Nf6 {[%emt 0:00:35]} 7. O-O {[%emt 0:00:10]} Be7 {[%emt 0:00:
09]} 8. Nc3 {[%emt 0:02:14]} O-O {[%emt 0:00:48]} 9. Bg5 {[%emt 0:00:10]} c4 {
[%emt 0:01:02]} 10. Ne5 {[%emt 0:01:28]} Be6 {[%emt 0:00:32]} 11. b3 {[%emt 0:
01:52]} Qa5 {[%emt 0:03:46]} 12. Qd2 {[%emt 0:02:09]} Rad8 {[%emt 0:37:30]} 13.
Nxc6 {[%emt 0:37:42]} bxc6 {[%emt 0:00:17]} 14. Rfd1 {[%emt 0:01:40]} Qa6 {
[%emt 0:27:06]} 15. Na4 {[%emt 0:07:03]} Bg4 {[%emt 0:04:41]} 16. h3 {[%emt 0:
08:39]} Bf5 {[%emt 0:02:31]} 17. Bxf6 {[%emt 0:05:35]} Bxf6 {[%emt 0:00:31]}
18. Nc5 {[%emt 0:01:06]} Qb6 {[%emt 0:06:50]} 19. Rac1 {[%emt 0:01:54]} cxb3 {
[%emt 0:01:49]} 20. Nxb3 {[%emt 0:01:58]} Rb8 {[%emt 0:02:55]} 21. Qf4 {
[%emt 0:02:52]} Bg6 {[%emt 0:02:38]} 22. Qd6 {[%emt 0:00:58]} Rfc8 {[%emt 0:01:
03]} 23. e3 {[%emt 0:01:26]} a5 {[%emt 0:01:39]} 24. Qa3 {[%emt 0:02:07]} Ra8 {
[%emt 0:01:47]} 25. Nc5 {[%emt 0:03:29]} Qb4 {[%emt 0:00:06]} 26. Qc3 {[%emt 0:
00:14]} Be7 {[%emt 0:01:18]} 27. a3 {[%emt 0:01:34]} Qxc3 {[%emt 0:00:33]} 28.
Rxc3 {[%emt 0:00:01]} Bd6 {[%emt 0:00:30]} 29. Rdc1 {[%emt 0:04:02]} Rab8 {
[%emt 0:00:01]} 30. Bf3 {[%emt 0:03:22]} h5 {[%emt 0:00:54]} 31. Kg2 {[%emt 0:
00:42]} f6 {[%emt 0:00:36]} 32. Nd7 {[%emt 0:02:36]} Rb7 {[%emt 0:00:25]} 33.
Nc5 {[%emt 0:00:24]} Ra7 {[%emt 0:00:34]} 34. Na4 {[%emt 0:00:58]} Rd8 {
[%emt 0:00:27]} 35. Rb3 {[%emt 0:00:24]} Be8 {[%emt 0:00:32]} 36. Rcc3 {
[%emt 0:02:12]} Rb8 {[%emt 0:00:28]} 37. Rxb8 {[%emt 0:00:35]} Bxb8 {[%emt 0:
00:01]} 38. Nb6 {[%emt 0:01:54]} Kf8 {[%emt 0:00:52]} 39. Na4 {[%emt 0:01:03]}
Rb7 {[%emt 0:00:39]} 40. Nc5 {[%emt 0:00:35]} Ra7 {[%emt 0:00:32]} 41. Ne6+ {
[%emt 0:30:20]} Kg8 {[%emt 0:05:55]} 42. Nd8 {[%emt 0:00:00]} Bd6 {[%emt 0:06:
43]} 43. Nxc6 {[%emt 0:00:00]} Bxc6 {[%emt 0:00:26]} 44. Rxc6 {[%emt 0:00:00]}
Bxa3 {[%emt 0:00:05]} 45. Bxh5 {[%emt 0:00:00]} a4 {[%emt 0:01:10]} 46. Rc8+ {
[%emt 0:00:00]} Kh7 {[%emt 0:06:48]} 47. Bf3 {[%emt 0:00:00]} Ra5 {[%emt 0:01:
56]} 48. Rd8 {[%emt 0:00:00]} Be7 {[%emt 0:00:23]} 49. Rd7 {[%emt 0:00:00]} a3
{[%emt 0:01:17]} 50. Bxd5 {[%emt 0:00:00]} Bf8 {[%emt 0:00:01]} 1-0